Cogmind - Beta 13 @@@ ROGUE MODE // 2024.04.12 @ 04:23:00 // Winter2022/Polymind Player: GregoriusTechneticies Result: Destroyed by G-73 Enforcer with Heavy Laser Performance ------------- Evolutions (8) 4000 Regions Visited (17) 3400 Robots Destroyed (2) 10 Value Destroyed (94) 94 Prototype IDs (0) 0 Alien Tech Used (0) 0 Bonus (7754) 7754 TOTAL SCORE: 15138 Bonus ------- Polymind Skill 6284 Pacifist 470 Entered DSFs 1000 Cogmind --------- Core Integrity 0/1450 Matter 0/0 Energy 48/100 System Corruption 6% Temperature Cool (9) Movement Core (50) Location -2/Research Parts ------- > --- POWER (1) -------- (None) > --- PROPULSION (2) --- (None) > --- UTILITY (1) ------ (None) > --- WEAPON (1) ------- (None) > --- INVENTORY (0) ---- (None) Peak State ------------ > --- POWER ------------ Micro Fission Core > --- PROPULSION ------- Antigrav System Antigrav System > --- UTILITY ---------- Improved Heat Sink Improved Heat Sink Improved Target Analyzer > --- WEAPON ----------- High-powered Shock Rifle Tesla Rifle Improved Remote Datajack > --- INVENTORY -------- (None) [Rating: 46] Favorites ----------- Power Light Ion Engine Engine Light Ion Engine Power Core Micro Fission Core Propulsion Light Treads Treads Light Treads Wheel Wheel Hover Unit Antigrav System Flight Unit Flight Unit Utility Heat Sink Device Heat Sink Storage Medium Matter Pod Processor Improved Target Analyzer Hackware Hacking Suite Protection Light Armor Plating Weapon Beam Rifle Energy Gun Beam Rifle Ballistic Gun Heavy Assault Rifle Special Weapon Mining Laser Special Melee Weapon Datajack Build | -11 -10 -9 -8 -7 -7 -6 -6 -6 -5 -5 -5 -5 -4 -4 -3 -3 -2 ------- Run | Yrd Mat Mat Mat Fac DSF Fac Low Zio Pro Fac Upp Upp Fac Ext Res DSF Res Slots Evolved . | . . . . . . . . . . . . . . . . . . Power . | . . . . . . . . . . . . . . . . . . Propulsion . | . . . . . . . . . . . . . . . . . . Utility . | . . . . . . . . . . . . . . . . . . Weapon . | . . . . . . . . . . . . . . . . . . Parts Attached . | . . . . . . . . . . . . . . . . . . Power . | . . . . . . . . . . . . . . . . . . Engine . | . . . . . . . . . . . . . . . . . . Core . | . . . . . . . . . . . . . . . . . . Reactor . | . . . . . . . . . . . . . . . . . . Propulsion . | . . . . . . . . . . . . . . . . . . Treads . | . . . . . . . . . . . . . . . . . . Leg . | . . . . . . . . . . . . . . . . . . Wheel . | . . . . . . . . . . . . . . . . . . Hover . | . . . . . . . . . . . . . . . . . . Flight . | . . . . . . . . . . . . . . . . . . Utility . | . . . . . . . . . . . . . . . . . . Device . | . . . . . . . . . . . . . . . . . . Storage . | . . . . . . . . . . . . . . . . . . Processor . | . . . . . . . . . . . . . . . . . . Hackware . | . . . . . . . . . . . . . . . . . . Protection . | . . . . . . . . . . . . . . . . . . Artifact . | . . . . . . . . . . . . . . . . . . Weapon . | . . . . . . . . . . . . . . . . . . Energy Gun . | . . . . . . . . . . . . . . . . . . Energy Cannon . | . . . . . . . . . . . . . . . . . . Ballistic Gun . | . . . . . . . . . . . . . . . . . . Ballistic Cannon . | . . . . . . . . . . . . . . . . . . Launcher . | . . . . . . . . . . . . . . . . . . Special Weapon . | . . . . . . . . . . . . . . . . . . Impact Weapon . | . . . . . . . . . . . . . . . . . . Slashing Weapon . | . . . . . . . . . . . . . . . . . . Piercing Weapon . | . . . . . . . . . . . . . . . . . . Special Melee Weapon . | . . . . . . . . . . . . . . . . . . Unidentified Prototypes . | . . . . . . . . . . . . . . . . . . Parts Lost 37 | 4 . 1 4 . . . 3 . 1 2 . . . 7 . . 15 Power 7 | 1 . . . . . . 1 . . 1 . . . . . . 4 Propulsion 13 | 1 . 1 1 . . . 1 . 1 1 . . . 2 . . 5 Utility 9 | 1 . . 1 . . . . . . . . . . 2 . . 5 Weapon 8 | 1 . . 2 . . . 1 . . . . . . 3 . . 1 Highest Loss Streak 13 | 4 . 1 4 . . . 2 . 1 2 . . . 7 . . 13 To Critical Strikes . | . . . . . . . . . . . . . . . . . . Average Slot Usage (%) 78 | . 59 83 97 . 100 100 75 25 25 90 100 100 100 94 22 22 26 Engine 10 | . 6 18 12 . 25 25 17 . . 7 . . . . . . 1 Core 2 | . . . . . . . . . . 6 11 11 11 11 11 11 6 Treads 7 | . . . 22 . . . . . . . . . . . . . . Wheel 4 | . 9 25 . . . . . . . . . . . . . . 6 Hover 5 | . 13 11 1 . . . . . . 18 22 22 22 21 . . . Flight 8 | . . . . . 50 50 38 25 25 8 . . . . . . . Device 12 | . 16 2 22 . . . . . . 12 22 22 22 21 11 11 6 Storage 2 | . . 12 . . . . . . . . . . . . . . 3 Processor 2 | . 13 6 . . . . . . . 2 11 11 11 10 . . 1 Hackware 1 | . . 3 1 . . . . . . 14 . . . . . . . Protection 3 | . . . 10 . . . . . . . . . . . . . . Energy Gun 6 | . . . 10 . . . . . . 5 22 22 22 21 . . . Ballistic Gun 6 | . . . 10 . 25 25 18 . . 4 . . . . . . . Special Weapon 1 | . . . . . . . . . . 2 11 11 11 10 . . . Special Melee Weapon 1 | . . 3 1 . . . . . . 7 . . . . . . . Naked Turns 44 | . 1 4 2 . . . . . . 3 . . . . . . 34 Heaviest Build 21 | 6 4 5 18 4 4 4 4 . . 21 21 21 21 21 6 6 6 Greatest Support 40 | 20 12 20 40 8 8 8 8 4 4 22 22 22 22 22 3 3 20 Greatest Overweight (x) 1 | . . . . . . . . . . . . . . 1 1 1 1 Average Overweight (x) . | . . . . . . . . . . . . . . . 1 1 . Largest Inventory Capacity 5 | . . 1 1 . . . . . . 5 5 5 5 5 5 5 5 Average Capacity 1 | . . . . . . . . . . 1 5 5 5 5 5 5 3 Most Carried . | . . . . . . . . . . . . . . . . . . Average Carried . | . . . . . . . . . . . . . . . . . . Final Capacity 5 | . . 1 . . . . . . . 5 5 5 5 5 5 5 . Final Carried . | . . . . . . . . . . . . . . . . . . Class Distribution -------------------- 29% | Sentry 23% | Programmer 22% | Swarmer 10% | Worker 7% | Operator 3% | Watcher Dominant Class ---------------- Tunneler | -10/Materials Worker | -9/Materials Sentry | -8/Materials Swarmer | -7/Factory Swarmer | -7/DSF Swarmer | -6/Factory Swarmer | -6/Lower Caves Swarmer | -6/Zion Swarmer | -5/Proximity Caves Operator | -5/Factory Programmer | -5/Upper Caves Programmer | -5/Upper Caves Programmer | -4/Factory Programmer | -4/Extension Programmer | -3/Research Programmer | -3/DSF Programmer | -2/Research Resources | -11 -10 -9 -8 -7 -7 -6 -6 -6 -5 -5 -5 -5 -4 -4 -3 -3 -2 ----------- Run | Yrd Mat Mat Mat Fac DSF Fac Low Zio Pro Fac Upp Upp Fac Ext Res DSF Res Matter Collected 52 | . . . 37 . . . 15 . . . . . . . . . . Remotely . | . . . . . . . . . . . . . . . . . . Salvage Created 49 | . . . 49 . . . . . . . . . . . . . . Parts 2 | . . . 2 . . . . . . . . . . . . . . Haulers Intercepted . | . . . . . . . . . . . . . . . . . . Recyclers Shooed . | . . . . . . . . . . . . . . . . . . Parts Field Recycled . | . . . . . . . . . . . . . . . . . . Retrieved Matter . | . . . . . . . . . . . . . . . . . . Parts Self-Destructed 5 | . . . . . . . 5 . . . . . . . . . . Prevented 3 | . . . . . . . 3 . . . . . . . . . . Kills | -11 -10 -9 -8 -7 -7 -6 -6 -6 -5 -5 -5 -5 -4 -4 -3 -3 -2 ------- Run | Yrd Mat Mat Mat Fac DSF Fac Low Zio Pro Fac Upp Upp Fac Ext Res DSF Res Combat Hostiles Destroyed 2 | . . . 2 . . . . . . . . . . . . . . Melee 1 | . . . 1 . . . . . . . . . . . . . . Guns 1 | . . . 1 . . . . . . . . . . . . . . Classes Destroyed 2 | . . . 2 . . . . . . . . . . . . . . Grunt 1 | . . . 1 . . . . . . . . . . . . . . Duelist 1 | . . . 1 . . . . . . . . . . . . . . Best Kill Streak 1 | . . . 1 . . . . . . . . . . . . . . Combat Bots Only 1 | . . . 1 . . . . . . . . . . . . . . Max Kills in Single Turn 1 | . . . 1 . . . . . . . . . . . . . . Gunslinging . | . . . . . . . . . . . . . . . . . . Exploded . | . . . . . . . . . . . . . . . . . . Melee 1 | . . . 1 . . . . . . . . . . . . . . Uniques/NPCs Destroyed . | . . . . . . . . . . . . . . . . . . Combat | -11 -10 -9 -8 -7 -7 -6 -6 -6 -5 -5 -5 -5 -4 -4 -3 -3 -2 -------- Run | Yrd Mat Mat Mat Fac DSF Fac Low Zio Pro Fac Upp Upp Fac Ext Res DSF Res Hostile Shots Fired 402 | 26 . 16 93 . 2 . 62 . 9 16 . . . 29 . . 149 Missed 145 | 7 . 4 22 . 1 . 44 . 5 5 . . . 10 . . 47 Damage Taken 4954 | 351 . 158 851 . 47 . 406 . 58 272 . . . 765 . . 2046 Core 2672 | 164 . 89 228 . 47 . 278 . 30 120 . . . 266 . . 1450 Absorbed by Shields . | . . . . . . . . . . . . . . . . . . Ignored by Resistances 413 | . . . . . . . . . . 15 . . . . . . 398 Core Remaining (%) 69 | 34 34 77 58 . 93 . . . 63 . . 88 . 76 . 100 . Volleys Fired 23 | 4 . . 18 . . . . . . . 1 . . . . . . Largest 2 | 1 . . 2 . . . . . . . 2 . . . . . . Hottest 125 | 100 . . 79 . . . . . . . 125 . . . . . . Shots Fired 36 | 4 . . 30 . . . . . . . 2 . . . . . . Gun 32 | . . . 30 . . . . . . . 2 . . . . . . Cannon . | . . . . . . . . . . . . . . . . . . Launcher . | . . . . . . . . . . . . . . . . . . Special 4 | 4 . . . . . . . . . . . . . . . . . Kinetic 12 | . . . 12 . . . . . . . . . . . . . . Thermal 22 | 4 . . 18 . . . . . . . . . . . . . . Explosive . | . . . . . . . . . . . . . . . . . . Electromagnetic 2 | . . . . . . . . . . . 2 . . . . . . Robot Hit Streak 12 | . . . 12 . . . . . . . . . . . . . . Robot Miss Streak 4 | . . . 4 . . . . . . . . . . . . . . Penetration Max . | . . . . . . . . . . . . . . . . . . Secondary Targets . | . . . . . . . . . . . . . . . . . . Shots Hit Robots 27 | . . 4 21 . . . . . . 2 . . . . . . . Core Hits 7 | 2 . . 5 . . . . . . . . . . . . . . Critical Kills . | . . . . . . . . . . . . . . . . . . Critical Parts Destroyed . | . . . . . . . . . . . . . . . . . . Critical Strikes 4 | . . . 4 . . . . . . . . . . . . . . Burn 4 | . . . 4 . . . . . . . . . . . . . . Melee Attacks 6 | . . 4 . . . . . . . 2 . . . . . . . Impact . | . . . . . . . . . . . . . . . . . . Slashing . | . . . . . . . . . . . . . . . . . . Piercing . | . . . . . . . . . . . . . . . . . . Sneak Attacks 4 | . . 2 . . . . . . . 2 . . . . . . . Combat Hostiles . | . . . . . . . . . . . . . . . . . . Follow-up Attacks . | . . . . . . . . . . . . . . . . . . Damage Inflicted 377 | 6 . . 341 . . . . . . . . . . . . . 30 Guns 322 | . . . 322 . . . . . . . . . . . . . . Cannons . | . . . . . . . . . . . . . . . . . . Explosions . | . . . . . . . . . . . . . . . . . . Melee . | . . . . . . . . . . . . . . . . . . Ramming 55 | 6 . . 19 . . . . . . . . . . . . . 30 Kinetic 121 | . . . 121 . . . . . . . . . . . . . . Thermal 201 | . . . 201 . . . . . . . . . . . . . . Explosive . | . . . . . . . . . . . . . . . . . . Electromagnetic . | . . . . . . . . . . . . . . . . . . Impact . | . . . . . . . . . . . . . . . . . . Slashing . | . . . . . . . . . . . . . . . . . . Piercing . | . . . . . . . . . . . . . . . . . . Highest Corruption 7 | 3 3 7 . . . . . . . 4 4 4 . . . . 6 Average Corruption 3 | 3 3 7 . . . . . . . 2 4 4 . . . . 3 Corruption Purged . | . . . . . . . . . . . . . . . . . . Corruption Blocked . | . . . . . . . . . . . . . . . . . . Effects 5 | 1 2 . . . . . . . . . 1 . . . . . 1 Message Errors 1 | 1 . . . . . . . . . . . . . . . . . Heat Flow Errors 2 | . . . . . . . . . . . 1 . . . . . 1 Data Loss (minor) 1 | . 1 . . . . . . . . . . . . . . . . Alerts 1 | . 1 . . . . . . . . . . . . . . . . Overload Shots . | . . . . . . . . . . . . . . . . . . Overflow Damage . | . . . . . . . . . . . . . . . . . . Projectiles . | . . . . . . . . . . . . . . . . . . Explosions . | . . . . . . . . . . . . . . . . . . Melee . | . . . . . . . . . . . . . . . . . . Knockbacks . | . . . . . . . . . . . . . . . . . . Impact . | . . . . . . . . . . . . . . . . . . Kinetic . | . . . . . . . . . . . . . . . . . . Secondary . | . . . . . . . . . . . . . . . . . . Self-Inflicted Damage 15 | 2 . . . . . . . . . . . . . . . . 13 Shots . | . . . . . . . . . . . . . . . . . . Rammed 24 | 4 . . 10 . . . . . . . . . . . . . 10 Targets Rammed 25 | 4 . . 11 . . . . . . . . . . . . . 10 Kicked . | . . . . . . . . . . . . . . . . . . Crushed 1 | . . . 1 . . . . . . . . . . . . . . Highest Temperature 280 | 280 . 11 90 . . . 16 . . . 215 . . . . . 280 Average Temperature 106 | 145 . 4 35 . . . 10 . . . 111 . . . . . 219 Received Heat Transfer 705 | . . 75 333 . . . 117 . . . . . . 72 . . 108 Siege Activations . | . . . . . . . . . . . . . . . . . . Robots Corrupted . | . . . . . . . . . . . . . . . . . . Combat Hostiles . | . . . . . . . . . . . . . . . . . . Parts Fried . | . . . . . . . . . . . . . . . . . . Impact Corruptions . | . . . . . . . . . . . . . . . . . . Robots Melted . | . . . . . . . . . . . . . . . . . . Combat Hostiles . | . . . . . . . . . . . . . . . . . . Parts Melted . | . . . . . . . . . . . . . . . . . . Heat Transferred 814 | . . . 814 . . . . . . . . . . . . . . Parts Sabotaged . | . . . . . . . . . . . . . . . . . . Parts Stolen . | . . . . . . . . . . . . . . . . . . Parts Stripped . | . . . . . . . . . . . . . . . . . . Power Chain Reactions . | . . . . . . . . . . . . . . . . . . Alert | -11 -10 -9 -8 -7 -7 -6 -6 -6 -5 -5 -5 -5 -4 -4 -3 -3 -2 ------- Run | Yrd Mat Mat Mat Fac DSF Fac Low Zio Pro Fac Upp Upp Fac Ext Res DSF Res Peak Influence 210 | . . 210 50 11 7 3 . . . 104 . . 30 44 . . 120 Initial 30 | . . . 5 11 7 3 . . . . . . 30 14 . . . Average 28 | . . 95 12 11 7 3 . . . 70 . . 30 29 . . 47 Maximum Alert Level 1 | . . 1 . . . . . . . . . . . . . . . Low Security (%) 99 | 100 100 97 100 100 100 100 . . . 100 . . 100 100 100 100 100 Level 1 . | . . 2 . . . . . . . . . . . . . . . Level 2 . | . . . . . . . . . . . . . . . . . . Level 3 . | . . . . . . . . . . . . . . . . . . Level 4 . | . . . . . . . . . . . . . . . . . . Level 5 . | . . . . . . . . . . . . . . . . . . High Security . | . . . . . . . . . . . . . . . . . . Max Security . | . . . . . . . . . . . . . . . . . . Squads Dispatched 6 | . . 1 1 . . . . . . 2 . . . 1 . . 1 Investigation 4 | . . . . . . . . . . 2 . . . 1 . . 1 Extermination . | . . . . . . . . . . . . . . . . . . Reinforcement 2 | . . 1 1 . . . . . . . . . . . . . . Assault . | . . . . . . . . . . . . . . . . . . Garrison . | . . . . . . . . . . . . . . . . . . Intercept . | . . . . . . . . . . . . . . . . . . Searches Triggered . | . . . . . . . . . . . . . . . . . . Construction Impeded . | . . . . . . . . . . . . . . . . . . Haulers Reinforced . | . . . . . . . . . . . . . . . . . . Active Scanning Responses . | . . . . . . . . . . . . . . . . . . Cargo Convoy Interrupts . | . . . . . . . . . . . . . . . . . . Stealth | -11 -10 -9 -8 -7 -7 -6 -6 -6 -5 -5 -5 -5 -4 -4 -3 -3 -2 --------- Run | Yrd Mat Mat Mat Fac DSF Fac Low Zio Pro Fac Upp Upp Fac Ext Res DSF Res Distress Signals 5 | . . 2 . . . . . . . . . . . 1 . . 2 Communications Jammed . | . . . . . . . . . . . . . . . . . . Distress Signals . | . . . . . . . . . . . . . . . . . . Times Spotted 133 | 20 . 18 15 . 1 . 26 . 5 6 . . . 5 . . 37 Peak Tracking Total 20 | 20 . 7 7 . 1 . 11 . 5 2 . . . 5 . . 15 Tactical Retreats 13 | . . 2 . . . . 10 . . . . . . . . . 1 Traps | -11 -10 -9 -8 -7 -7 -6 -6 -6 -5 -5 -5 -5 -4 -4 -3 -3 -2 ------- Run | Yrd Mat Mat Mat Fac DSF Fac Low Zio Pro Fac Upp Upp Fac Ext Res DSF Res Traps Triggered 1 | . . . . . . . . . . . . . . . . . 1 Indirectly . | . . . . . . . . . . . . . . . . . . Trap Hack Attempts . | . . . . . . . . . . . . . . . . . . Triggered . | . . . . . . . . . . . . . . . . . . Disarmed . | . . . . . . . . . . . . . . . . . . Reprogrammed . | . . . . . . . . . . . . . . . . . . Reused . | . . . . . . . . . . . . . . . . . . Traps Extracted . | . . . . . . . . . . . . . . . . . . Installed . | . . . . . . . . . . . . . . . . . . Triggered 1 | . . . . . . . 1 . . . . . . . . . . Machines | -11 -10 -9 -8 -7 -7 -6 -6 -6 -5 -5 -5 -5 -4 -4 -3 -3 -2 ---------- Run | Yrd Mat Mat Mat Fac DSF Fac Low Zio Pro Fac Upp Upp Fac Ext Res DSF Res Machines Disabled . | . . . . . . . . . . . . . . . . . . Max in Single Turn . | . . . . . . . . . . . . . . . . . . Machines Repaired . | . . . . . . . . . . . . . . . . . . Machines Dismantled . | . . . . . . . . . . . . . . . . . . Machines Sabotaged . | . . . . . . . . . . . . . . . . . . Overloaded Fab Kills . | . . . . . . . . . . . . . . . . . . Hacking | -11 -10 -9 -8 -7 -7 -6 -6 -6 -5 -5 -5 -5 -4 -4 -3 -3 -2 --------- Run | Yrd Mat Mat Mat Fac DSF Fac Low Zio Pro Fac Upp Upp Fac Ext Res DSF Res Machines Accessed 9 | . . 2 . 1 . . 1 . . 2 . . . 2 1 . . Terminals 7 | . . 2 . 1 . . . . . 1 . . . 2 1 . . Fabricators . | . . . . . . . . . . . . . . . . . . Repair Stations . | . . . . . . . . . . . . . . . . . . Recycling Units . | . . . . . . . . . . . . . . . . . . Scanalyzers . | . . . . . . . . . . . . . . . . . . Garrison Access 1 | . . . . . . . . . . 1 . . . . . . . Total Hacks 21 | . . 4 . 1 . . 1 . . 8 . . . 5 2 . . Successful 9 | . . 4 . 1 . . 1 . . 2 . . . . 1 . . Failed 12 | . . . . . . . . . . 6 . . . 5 1 . . Catastrophic 1 | . . . . . . . . . . . . . . 1 . . . Database Lockouts . | . . . . . . . . . . . . . . . . . . Manual 6 | . . 4 . . . . . . . . . . . 2 . . . Terminals 17 | . . 4 . 1 . . . . . 5 . . . 5 2 . . Fabricators . | . . . . . . . . . . . . . . . . . . Repair Stations . | . . . . . . . . . . . . . . . . . . Recycling Units . | . . . . . . . . . . . . . . . . . . Scanalyzers . | . . . . . . . . . . . . . . . . . . Garrison Access 3 | . . . . . . . . . . 3 . . . . . . . Terminal Hacks 8 | . . 3 . 1 . . 1 . . 2 . . . . 1 . . Record 2 | . . . . . . . . . . 2 . . . . . . . Open Door 1 | . . . . . . . 1 . . . . . . . . . . Open DSF 2 | . . . . 1 . . . . . . . . . . 1 . . Terminal Index 1 | . . 1 . . . . . . . . . . . . . . . Unreport Threat 2 | . . 2 . . . . . . . . . . . . . . . Fabricator Hacks . | . . . . . . . . . . . . . . . . . . Repair Station Hacks . | . . . . . . . . . . . . . . . . . . Recycling Unit Hacks . | . . . . . . . . . . . . . . . . . . Scanalyzer . | . . . . . . . . . . . . . . . . . . Garrison Access Hacks . | . . . . . . . . . . . . . . . . . . Unauthorized Hacks 1 | . . 1 . . . . . . . . . . . . . . . Terminals 1 | . . 1 . . . . . . . . . . . . . . . Botnet 1 | . . 1 . . . . . . . . . . . . . . . Fabricators . | . . . . . . . . . . . . . . . . . . Repair Stations . | . . . . . . . . . . . . . . . . . . Recycling Units . | . . . . . . . . . . . . . . . . . . Scanalyzers . | . . . . . . . . . . . . . . . . . . Garrison Access . | . . . . . . . . . . . . . . . . . . Data Cores Recovered . | . . . . . . . . . . . . . . . . . . Used . | . . . . . . . . . . . . . . . . . . Hacking Detections 8 | . . 2 . 1 . . . . . 2 . . . 2 1 . . Full Trace Events 3 | . . . . . . . . . . 2 . . . 1 . . . Feedback Events . | . . . . . . . . . . . . . . . . . . Feedback Blocked . | . . . . . . . . . . . . . . . . . . Robot Schematics Acquired . | . . . . . . . . . . . . . . . . . . Robots Built . | . . . . . . . . . . . . . . . . . . Authchips . | . . . . . . . . . . . . . . . . . . Time . | . . . . . . . . . . . . . . . . . . Total Robot Build Rating . | . . . . . . . . . . . . . . . . . . Part Schematics Acquired . | . . . . . . . . . . . . . . . . . . Parts Built . | . . . . . . . . . . . . . . . . . . Authchips . | . . . . . . . . . . . . . . . . . . Time . | . . . . . . . . . . . . . . . . . . Total Part Build Rating . | . . . . . . . . . . . . . . . . . . Parts Repaired . | . . . . . . . . . . . . . . . . . . Time . | . . . . . . . . . . . . . . . . . . Parts Recycled . | . . . . . . . . . . . . . . . . . . Recycled Matter . | . . . . . . . . . . . . . . . . . . Retrieved Matter . | . . . . . . . . . . . . . . . . . . Retrieved Components . | . . . . . . . . . . . . . . . . . . Parts Scanalyzed . | . . . . . . . . . . . . . . . . . . Part Schematics Acquired . | . . . . . . . . . . . . . . . . . . Parts Damaged . | . . . . . . . . . . . . . . . . . . Bothacking | -11 -10 -9 -8 -7 -7 -6 -6 -6 -5 -5 -5 -5 -4 -4 -3 -3 -2 ------------ Run | Yrd Mat Mat Mat Fac DSF Fac Low Zio Pro Fac Upp Upp Fac Ext Res DSF Res Used RIF Installer . | . . . . . . . . . . . . . . . . . . Robots Hacked 12 | . 1 5 2 . . . . . 1 2 . . . . . . 1 Non-combat 8 | . 1 5 . . . . . . . 1 . . . . . . 1 Combat 4 | . . . 2 . . . . . 1 1 . . . . . . . Robot Hacks Applied 16 | . 2 5 4 . . . . . 1 3 . . . . . . 1 parse_system 4 | . . 4 . . . . . . . . . . . . . . . map_walls 1 | . . . . . . . . . . . . . . . . . 1 find_terminals 2 | . . 1 . . . . . . . 1 . . . . . . . map_route 1 | . 1 . . . . . . . . . . . . . . . . mark_security 1 | . 1 . . . . . . . . . . . . . . . . find_shortcuts 4 | . . . 2 . . . . . 1 1 . . . . . . . find_garrison 3 | . . . 2 . . . . . . 1 . . . . . . . Relay Couplers Released . | . . . . . . . . . . . . . . . . . . Fabnet Peak Effective % . | . . . . . . . . . . . . . . . . . . Robots Rewired . | . . . . . . . . . . . . . . . . . . Allies Hacked . | . . . . . . . . . . . . . . . . . . Hacks Repelled . | . . . . . . . . . . . . . . . . . . Allies | -11 -10 -9 -8 -7 -7 -6 -6 -6 -5 -5 -5 -5 -4 -4 -3 -3 -2 -------- Run | Yrd Mat Mat Mat Fac DSF Fac Low Zio Pro Fac Upp Upp Fac Ext Res DSF Res Total Allies . | . . . . . . . . . . . . . . . . . . Largest Group . | . . . . . . . . . . . . . . . . . . Highest-Rated Group . | . . . . . . . . . . . . . . . . . . Highest-Rated Ally . | . . . . . . . . . . . . . . . . . . Total Orders . | . . . . . . . . . . . . . . . . . . Ally Attacks . | . . . . . . . . . . . . . . . . . . Total Damage . | . . . . . . . . . . . . . . . . . . Kills . | . . . . . . . . . . . . . . . . . . Allies Corrupted . | . . . . . . . . . . . . . . . . . . Allies Melted . | . . . . . . . . . . . . . . . . . . Intel | -11 -10 -9 -8 -7 -7 -6 -6 -6 -5 -5 -5 -5 -4 -4 -3 -3 -2 ------- Run | Yrd Mat Mat Mat Fac DSF Fac Low Zio Pro Fac Upp Upp Fac Ext Res DSF Res Robot Analysis Total 10 | 1 1 2 2 . . . . . 1 2 . . . . . . 1 Derelict Logs Recovered 4 | . . . . . . . 3 . . . 1 . . . . . . Drone Launches . | . . . . . . . . . . . . . . . . . . Drone Recoveries . | . . . . . . . . . . . . . . . . . . Exploration | -11 -10 -9 -8 -7 -7 -6 -6 -6 -5 -5 -5 -5 -4 -4 -3 -3 -2 ------------- Run | Yrd Mat Mat Mat Fac DSF Fac Low Zio Pro Fac Upp Upp Fac Ext Res DSF Res Turns Passed 3597 | 565 49 438 1001 1 24 25 439 78 69 123 208 13 47 114 96 66 241 Spaces Moved 4410 | 397 74 588 376 3 64 68 1145 165 172 243 367 23 84 199 96 66 280 Core 413 | 10 1 8 . . . . . . . 4 . . . 1 96 66 227 Treads 196 | . . . 196 . . . . . . . . . . . . . . Legs . | . . . . . . . . . . . . . . . . . . Wheels 795 | 387 31 324 . . . . . . . . . . . . . . 53 Hover 1272 | . 42 256 148 . . . . . . 154 367 23 84 198 . . . Flight 1734 | . . . 32 3 64 68 1145 165 172 85 . . . . . . . Fastest Speed 32 | 50 50 50 37 37 37 37 37 40 40 32 56 56 56 56 100 100 50 Average Speed 61 | 79 65 69 110 37 37 37 38 40 40 47 56 56 56 57 100 100 82 Slowest Speed 160 | 80 80 80 160 37 37 37 40 40 40 60 56 56 56 120 100 100 100 Overloaded Moves . | . . . . . . . . . . . . . . . . . . Propulsion Burnouts . | . . . . . . . . . . . . . . . . . . Robots Hopped 3 | . . . . . 1 . 1 . 1 . . . . . . . . Cave-ins Triggered . | . . . . . . . . . . . . . . . . . . Exploration Rate (%) 32 | 23 29 34 39 . 84 4 88 11 38 8 59 9 4 31 4 72 12 Regions Visited 17 Branch Regions 6 Pre-discovered Areas . | . . . . . . . . . . . . . . . . . . Known Exits Taken 5 | . 1 . . 1 . . . . . . 1 . 1 . 1 . . Unknown Exits Taken 10 | 1 . 1 1 . . 1 1 1 1 1 . 1 . 1 . . . Scrap Searched 5 | . . . . . . . 1 . 2 . 2 . . . . . . Spaces Dug . | . . . . . . . . . . . . . . . . . . Terrain Destroyed 1 | 1 . . . . . . . . . . . . . . . . . Melee . | . . . . . . . . . . . . . . . . . . Projectile 1 | 1 . . . . . . . . . . . . . . . . . AOE . | . . . . . . . . . . . . . . . . . . Terrain Rammed . | . . . . . . . . . . . . . . . . . . Walls Destroyed . | . . . . . . . . . . . . . . . . . . Machines Disabled . | . . . . . . . . . . . . . . . . . . Actions | -11 -10 -9 -8 -7 -7 -6 -6 -6 -5 -5 -5 -5 -4 -4 -3 -3 -2 --------- Run | Yrd Mat Mat Mat Fac DSF Fac Low Zio Pro Fac Upp Upp Fac Ext Res DSF Res Total 5239 | 635 73 615 925 2 62 67 1143 176 171 249 367 22 83 198 96 65 290 Wait 566 | 7 . 24 519 . . . . 12 . 4 . . . . . . . Move 4389 | 396 73 587 375 2 61 67 1142 164 170 242 366 22 83 198 96 65 280 Hop 3 | . . . . . 1 . 1 . 1 . . . . . . . . Pick Up . | . . . . . . . . . . . . . . . . . . Fast Attach . | . . . . . . . . . . . . . . . . . . Attach . | . . . . . . . . . . . . . . . . . . Detach . | . . . . . . . . . . . . . . . . . . Swap . | . . . . . . . . . . . . . . . . . . Drop . | . . . . . . . . . . . . . . . . . . Fire 23 | 4 . . 18 . . . . . . . 1 . . . . . . Melee 6 | . . 4 . . . . . . . 2 . . . . . . . Ram 14 | 4 . . . . . . . . . . . . . . . . 10 Kick . | . . . . . . . . . . . . . . . . . . Crush 11 | . . . 11 . . . . . . . . . . . . . . Escape Stasis . | . . . . . . . . . . . . . . . . . . Rewire 3 | . . . 2 . . . . . . 1 . . . . . . . Trap . | . . . . . . . . . . . . . . . . . . Miscellaneous 224 | 224 . . . . . . . . . . . . . . . . . Route ------- -11/Scrapyard -10/Materials -9/Materials -8/Materials -7/Factory -7/DSF -6/Factory -6/Lower Caves (discovered 2 exits: *Low / [*Zio]) -6/Zion -5/Proximity Caves -5/Factory -5/Upper Caves -5/Upper Caves -4/Factory (discovered 2 exits: *Ext x2) -4/Extension -3/Research -3/DSF -2/Research History --------- Turn | Location | Event 4 | -11/Scrapyard | Discovered new exit (range 13) 518 | -11/Scrapyard | Assembled infested the area 536 | -11/Scrapyard | Core integrity fell below 50% 566 | -11/Scrapyard | Entered Materials 580 | -10/Materials | Lost 4 parts (1p1n1u1w) 605 | -10/Materials | Discovered new exit (range 17) 614 | -10/Materials | Identified exit to Materials 615 | -10/Materials | Entered another Materials area 1052 | -9/Materials | Discovered new exit (range 3) 1053 | -9/Materials | Entered another Materials area 2051 | -8/Materials | Discovered new exit (range 9) 2054 | -8/Materials | Entered Factory 2055 | -7/Factory | Identified exit to DSF 2055 | -7/Factory | Entered DSF 2070 | -7/DSF | Lost 4 parts (1n1u2w) 2074 | -7/DSF | Discovered new exit (range 14) 2079 | -7/DSF | Entered Factory 2102 | -6/Factory | Discovered new exit (range 5) 2104 | -6/Factory | Entered Lower Caves 2109 | -6/Lower Caves | Identified exit to Lower Caves 2406 | -6/Lower Caves | Attracted the attention of an 0b10 outpost 2410 | -6/Lower Caves | Spotted B-75 Beast 2540 | -6/Lower Caves | A Derelict revealed a hidden shortcut to a safe place 2543 | -6/Lower Caves | Entered Zion 2617 | -6/Zion | Discovered new exit (range 10) 2621 | -6/Zion | Entered Proximity Caves 2675 | -5/Proximity Caves | Spotted B-75 Beast 2684 | -5/Proximity Caves | Discovered new exit (range 16) 2690 | -5/Proximity Caves | Entered Factory 2805 | -5/Factory | Discovered new exit (range 16) 2813 | -5/Factory | Entered Upper Caves 2970 | -5/Upper Caves | Identified exit to Upper Caves 3021 | -5/Upper Caves | Entered another Upper Caves area 3029 | -5/Upper Caves | Discovered new exit (range 9) 3034 | -5/Upper Caves | Entered Factory 3035 | -4/Factory | Identified exit to Extension 3073 | -4/Factory | Discovered exit to Extension (range 15) 3081 | -4/Factory | Entered Extension 3180 | -4/Extension | Spotted B-86 Titan 3185 | -4/Extension | Spotted B-86 Titan 3194 | -4/Extension | Discovered new exit (range 1) 3195 | -4/Extension | Entered Research 3225 | -3/Research | Lost 7 parts (2n2u3w) 3291 | -3/Research | Identified exit to DSF 3291 | -3/Research | Entered DSF 3346 | -3/DSF | Discovered new exit (range 11) 3357 | -3/DSF | Entered Research 3566 | -2/Research | Core integrity fell below 50% 3594 | -2/Research | Core integrity fell below 20% 3598 | -2/Research | Destroyed by G-73 Enforcer with Heavy Laser Last Messages --------------- 03556_ Structural Scanner destroyed. 03558_ Terrain Scanner destroyed. 03558_ Wheel destroyed. 03558_ Penetrated by Slug. 03558_ Slug penetrates Wall. 03559_ Lgt. Ion Engine destroyed. 03559_ P-80 Master resets S-43 Plague, system corruption cleaned. 03561_ Wheel destroyed. 03565_ System corrupted: Heat flow error (+290). 03572_ Terrain Scan Processor destroyed. 03572_ Lost control of U-05 Engineer. 03575_ U-05 Engineer destroyed. 03576_ Took control of K-01 Serf. 03577_ Lgt. Ion Engine destroyed. 03578_ K-01 Serf collects debris. 03579_ Wheel destroyed. 03586_ Med. Matter Pod destroyed. 03586_ Lost control of K-01 Serf. 03596_ Slammed into G-73 Enforcer. Map ----- +----------------------------------------------------+ | ?????????????????????????????????????????????????? | | ?????????????????????????????????????????????????? | | ?????????????????????????????????????????????????? | | ?????????????????????????????????????????????????? | | ?????????????????????????????????????????????????? | | ?????????????????????????????????????????????????? | | ?????????????????????????????????????????????????? | | ?????????????????????????????????????????????????? | | ?????????????????????????????????????????????????? | | ?????????????????????????????????????????????????? | | ?????????????????????????????????????????????????? | | ?????????????????????????????????????????????????? | | ?????????????????????????????????????????????????? | | ?????????????????????????????????????????????????? | | ?????????????????????????????????????????????????? | | ?????????????????????????????????????????????????? | | ?????????????????????????????????????????????????? | | ?????????????????????????????????????????????????? | | ??????????????????###############????????????????? | | ??????????????????# #????????????????? | | ??????????????????# #????????????????? | | ??????????????????#"" #????????????????? | | ??????????????????#"" #????????????????? | | ??????????????????#"" #????????????????? | | ??????????????????#G ###??????????????? | | ??????????????????#"" % @ R u/ R ????????? | | ??????????????????#""ssgg """" ##???????????????? | | ??????????????????#"" g """" #????????????????? | | ??????????????????# g """" #????? ??????????? | | ??????????????????# s """" ????? ????????? | | ??????????????????#######/########### #???????? | | ??????????????????????# ps + !! # /???????? | | ??????????????????????# ## !! # #???????? | | ??????????????????????# #? ! # #???????? | | ??????????????????????+ #?? # #???????? | | ??????????????????????# #?? # #???????? | | ??????????????????????# #??? # #???????? | | ??????????????????????# ######/### #???????? | | ??????????????????????# +???????? | | ??????????????????????# #???????? | | ??????????????????????# #???????? | | ??????????????????????# #???????? | | ??????????????????????############### #???????? | | ????????????????????????????????????# #???????? | | ????????????????????????????????????# #???????? | | ????????????????????????????????????+ #???????? | | ????????????????????????????????????# #######?? | | #?#?#?#?????????????????????????????# # #?? | | #?#?#?#?????????????????????????????# #* #?? | | #?#?#?#?###########?????????????????# # #?? | +----------------------------------------------------+ Best States ------------- Heat Dissipation 57 Energy Generation 25 Energy Capacity 215 Matter Stores 100 Matter Capacity 125 Sight Range 18 Robot Scan Range 14 Terrain Scan Range 16 Terrain Scan Density 85 Armor Coverage 150 Resistance: EX 50 Resistance: EM 75 Resistance: I 25 Evasion (%) 63 Target Analysis 6 Recoil Reduction 2 Offensive Hacking 10 Defensive Hacking 10 Item Schematics ----------------- None Robot Schematics ------------------ None Fabricated ------------ Nothing Alien Tech Used ----------------- None Achievements -------------- None Challenges ------------ None Polymind | -11 -10 -9 -8 -7 -7 -6 -6 -6 -5 -5 -5 -5 -4 -4 -3 -3 -2 ---------- Run | Yrd Mat Mat Mat Fac DSF Fac Low Zio Pro Fac Upp Upp Fac Ext Res DSF Res Hosts 12 | 1 1 2 2 . . . . . 1 2 . . . . . . 3 Combat Hostiles 4 | . . . 2 . . . . . 1 1 . . . . . . . Allies . | . . . . . . . . . . . . . . . . . . Unique Host Classes 8 | 1 1 2 2 . . . . . . 1 . . . . . . 1 Average Host Suspicion 51 | 5 18 84 56 . 49 13 77 . 67 80 48 1 16 72 18 24 63 Unsuspicious Activity 1835 | 1162 6 128 529 . . . . . . 8 . . . . . . 2 Returns to Shadow 1 | . . . 1 . . . . . . . . . . . . . . Fuzzy Dispatches . | . . . . . . . . . . . . . . . . . . Protomatter Created 103 | 78 . . 25 . . . . . . . . . . . . . . Used 145 | 5 12 10 29 . . . . . 14 60 . . . . . . 15 Decayed 11 | 11 . . . . . . . . . . . . . . . . . Highest Spend 53 | 5 12 5 23 . . . . . 14 53 . . . . . . 5 Top 5 Hosts by Kills: Y-45 Defender (-8/Materials: 2) Game ------ Seed SpliceCompactWheel Manual? 0 Play Time 00:45:18 Cumulative 25.1 hours Start 2024.04.12 @ 03:00:28 End 2024.04.12 @ 04:23:00 Sessions 1 Manual Loads 0 Difficulty Rogue Special Mode Winter2022/Polymind Game No. 32 Rogue 17 Adventurer 0 Explorer 15 Win Type - Total 0 Types 0/0/0/0/0/0/0/0/0 Lore% 16 Gallery% 25 Achievement% 19 Wizard Run 0 Options --------- Layout 1 ASCII 0 Keyboard 0 Movement Mouse Keybinds 0 Fullscreen 1 Font 24/Smallcaps Map View 50x35 Zoom Use 0% Tactical HUD 1 Map Filters NONE Filters NONE Steam 1 RUN: 2082bf99-b6a6-4c64-af35-7b3aecee73ae